[Event "85th Tata Steel Masters 2023"]
[Site "Wijk aan Zee"]
[Date "2023.01.29"]
[Round "13.1"]
[White "Abdusattorov, Nodirbek"]
[Black "Van Foreest, Jorden"]
[Result "0-1"]
[ECO "B48"]
[WhiteElo "2713"]
[BlackElo "2681"]
[Annotator "TA"]
[PlyCount "98"]
[EventDate "2023.01.10"]
[EventType "tourn"]
[EventCountry "NED"]
[SourceTitle "playchess.com"]
[Source "ChessBase"]
[SourceQuality "1"]
[TimeControl "40/6000+30:30/3000+30:900+30"]

{[%evp 11,98,29,41,41,56,48,37,51,39,47,51,22,29,0,41,36,34,27,35,34,29,15,24,0,0,0,0,0,68,3,43,0,0,0,0,0,0,0,23,-49,-52,-58,-49,-48,-45,-96,0,0,7,-14,-25,-20,-24,-32,-43,-64,-61,-66,-62,-59,-36,-70,-69,-80,-89,-228,-218,-212,-184,-257,-248,-253,-246,-306,-314,-310,-291,-617,-617,-540,-463,-483,-490,-482,-481,-467,-467,-512,-507]} 1. e4 {[%emt 0:00:07]} c5 {[%emt 0:00:06]} 2. Nf3 {[%emt 0:00:11]} e6 {[%emt 0:00:06]} 3. d4 {[%emt 0:01:55]} cxd4 {[%emt 0:00:07]} 4. Nxd4 {[%emt 0:00:06]} Nc6 {[%emt 0:00:07]} 5. Nc3 {[%emt 0:01:58]} Qc7 {[%emt 0:00:08]} 6. Be3 {[%emt 0:00:13]} a6 {[%emt 0:00:17]} 7. Qf3 {[%emt 0:02:14] B48: Sicilian: Taimanov: 5 Nc3 Qc7 6 Be3 a6 without Be2.} h5 {[%emt 0:00:07][%cal Of8a3]} 8. O-O-O {[%emt 0:10:46]} b5 {[%emt 0:00:59] [#]} 9. Qg3 $146 {[%emt 0:05:59] White is slightly better.} ({Predecessor:} 9. Nxc6 Qxc6 10. Bd3 Bb7 11. Rhe1 Be7 12. Bd4 b4 13. Nd5 exd5 14. Bxg7 Rh6 15. exd5 Qxd5 16. Qxd5 Bxd5 17. Bxh6 Nxh6 {1-0 Hakobyan,E (2279)-Kavutskiy,K (2406) Las Vegas National op 2022 (4)}) 9... Qxg3 {[%emt 0:01:28]} 10. hxg3 {[%emt 0:00:20]} Bc5 {[%emt 0:00:08]} 11. g4 {[%emt 0:01:56]} (11. Rd2 {simplifies} Nxd4 12. Bxd4 Bxd4 13. Rxd4 Ne7 14. a4) 11... Bb7 {[%emt 0:06:12]} 12. f3 {[%emt 0:10:52]} g6 {[%emt 0:13:50] [#]} (12... h4 $5) 13. Nf5 $1 {[%emt 0:10:18]} Bxe3+ {[%emt 0:01:18]} 14. Nxe3 {[%emt 0:00:20]} Ke7 {[%emt 0:11:48]} 15. Be2 {[%emt 0:08:12]} d6 {[%emt 0:10:34]} 16. g5 {[%emt 0:10:49]} f6 {[%emt 0:00:46]} 17. f4 {[%emt 0:02:19]} fxg5 {[%emt 0:01:41]} 18. fxg5 {[%emt 0:02:19]} Ne5 {[%emt 0:01:50]} 19. Rd4 {[%emt 0:00:47]} Rd8 {[%emt 0:11:00]} (19... Nc6 $11 20. Rd2 Ne5) 20. Rhd1 {[%emt 0:01:35]} (20. a4 $14) 20... h4 {[%emt 0:02:46]} 21. Ng4 {[%emt 0:13:02] Nxe5 would be deadly.} (21. a4 $5 {[%cal Ra4b5]}) 21... Nc6 {[%emt 0:01:22]} 22. R4d2 {[%emt 0:00:10]} Rh5 {[%emt 0:05:53]} 23. e5 {[%emt 0:00:13][%cal Re5d6]} d5 {[%emt 0:07:26]} 24. Ne4 {[%emt 0:00:12]} Bc8 {[%emt 0:00:04]} 25. Ngf6 {[%emt 0:14:04]} (25. Ngf2 $1 $11) 25... Rh8 $15 {[%emt 0:00:06][%cal Oc6e5]} 26. Nxg8+ {[%emt 0:00:23][%mdl 64] [#] Remove Defender} Rdxg8 {[%emt 0:02:23]} 27. Nf6 {[%emt 0:00:10]} Rd8 {[%emt 0:03:34]} 28. Re1 {[%emt 0:03:24]} ({Better is} 28. a4 $15) 28... h3 {[%emt 0:02:32]} ({Black should play} 28... Nxe5 $17 29. Bg4 (29. Bxb5 h3 $17) 29... Nxg4 30. Nxg4 Rh5) 29. gxh3 $11 {[%emt 0:00:36]} Rxh3 {[%emt 0:00:17]} 30. Bg4 {[%emt 0:03:13]} (30. Bd3 $5 {[%cal Rd3g6]}) 30... Rh4 {[%emt 0:00:06]} 31. b3 {[%emt 0:01:26]} Rdh8 {[%emt 0:01:31]} 32. Kb2 {[%emt 0:00:07]} (32. c4 {with more complications.} dxc4 33. Bf3 c3 34. Rdd1) 32... Rh2 {[%emt 0:00:38]} 33. Ree2 {[%emt 0:01:57]} Rxe2 {[%emt 0:00:49]} 34. Rxe2 {[%emt 0:00:01]} a5 {[%emt 0:06:15]} 35. a3 {[%emt 0:00:43]} Ba6 {[%emt 0:00:27]} (35... b4 $5 {[%cal Rc8a6]}) 36. Re1 {[%emt 0:01:22][%cal Ob3b4]} b4 $1 {[%emt 0:01:02]} 37. a4 {[%emt 0:00:05]} Nd8 {[%emt 0:13:19]} 38. Be2 {[%emt 0:03:16] This costs White the game.} (38. Bf3 $17) 38... Bxe2 $19 {[%emt 0:00:34]} 39. Rxe2 {[%emt 0:00:00][%mdl 4096] Endgame KRN-KRN} Nf7 {[%emt 0:01:57]} 40. c3 {[%emt 0:00:55]} (40. Re3 {was worth a try.}) 40... bxc3+ {[%emt 0:00:19]} ({Not} 40... Nxg5 41. cxb4 axb4 42. Rc2 $17) 41. Kxc3 {[%emt 0:50:06]} Nxg5 {[%emt 0:51:12]} 42. b4 {[%emt 0:00:00]} Rh3+ {[%emt 0:00:00][%mdl 64] Deflection} 43. Kb2 {[%emt 0:00:00]} axb4 {[%emt 0:00:00]} 44. Rc2 $2 {[%emt 0:00:00]} (44. a5) 44... Nf3 {[%emt 0:00:00] Black is clearly winning.} 45. Ng4 {[%emt 0:00:00]} Nd4 {[%emt 0:00:00]} 46. Rc8 {[%emt 0:00:00]} Rb3+ {[%emt 0:00:00]} 47. Ka2 {[%emt 0:00:00]} Ra3+ {[%emt 0:00:00]} 48. Kb2 {[%emt 0:00:00]} Rxa4 {[%emt 0:00:00]} 49. Nf6 {[%emt 0:00:00]} b3 {[%emt 0:00:00] Weighted Error Value: White=0.28 (precise) /Black=0.12 (very precise)} 0-1

[Event "85th Tata Steel Masters 2023"]
[Site "Wijk aan Zee"]
[Date "2023.01.29"]
[Round "13.2"]
[White "Giri, Anish"]
[Black "Rapport, Richard"]
[Result "1-0"]
[ECO "B60"]
[WhiteElo "2764"]
[BlackElo "2740"]
[Annotator "TA"]
[PlyCount "77"]
[EventDate "2023.01.10"]
[EventType "tourn"]
[EventCountry "NED"]
[SourceTitle "playchess.com"]
[Source "ChessBase"]
[SourceQuality "1"]
[TimeControl "40/6000+30:30/3000+30:900+30"]

{[%evp 13,77,50,45,40,56,41,58,43,39,34,34,33,35,33,36,38,35,25,16,0,27,41,34,33,46,42,47,46,46,42,42,31,32,32,45,34,49,45,47,41,91,60,77,38,46,15,17,19,30,8,9,0,0,0,11,14,733,716,854,863,820,779,29990,632,29992,116]} 1. e4 {[%emt 0:00:02]} c5 {[%emt 0:01:54]} 2. Nf3 {[%emt 0:00:10]} d6 {[%emt 0:00:54]} 3. d4 {[%emt 0:01:30]} cxd4 {[%emt 0:00:09]} 4. Nxd4 {[%emt 0:00:03]} Nf6 {[%emt 0:00:09]} 5. Nc3 {[%emt 0:00:03]} Nc6 {[%emt 0:00:09]} 6. Bg5 {[%emt 0:00:06]} g6 {[%emt 0:00:08]} 7. Bxf6 {[%emt 0:01:46]} exf6 {[%emt 0:00:13]} 8. Bb5 {[%emt 0:00:25] B60: Sicilian: Richter-Rauzer: Unusual Black 6th moves and 6...Bd7 without 7 Qd2.} Bd7 {[%emt 0:00:16]} 9. Bc4 {[%emt 0:17:32] 9.Nde2 is the modern continuation.} Bg7 {[%emt 0:05:45]} 10. Nxc6 {[%emt 0:01:10] White is slightly better.} Bxc6 {[%emt 0:00:58]} 11. O-O {[%emt 0:00:10]} O-O {[%emt 0:00:28]} 12. Qd3 {[%emt 0:00:33]} Rc8 {[%emt 0:12:51] [#]} 13. Nd5 $146 {[%emt 0:02:22]} ({Predecessor:} 13. Bb3 f5 14. exf5 Bxc3 15. bxc3 Qg5 16. f3 Qxf5 17. Qxf5 gxf5 18. Rfe1 Rfe8 19. Kf2 {½-½ Motylev,A (2677)-Potkin,V (2684) Tata Steel-B 74th 2012 (2)}) 13... Re8 {[%emt 0:18:30]} 14. c3 {[%emt 0:01:39]} Bd7 {[%emt 0:05:33]} 15. Bb5 {[%emt 0:08:48]} Bc6 {[%emt 0:01:21][%cal Oc6d5]} 16. Bc4 {[%emt 0:12:02]} Bd7 $1 {[%emt 0:00:39]} 17. Rfe1 {[%emt 0:06:28]} f5 {[%emt 0:03:06]} 18. Bb3 {[%emt 0:06:55]} fxe4 {[%emt 0:07:25]} 19. Rxe4 {[%emt 0:00:05]} Bf5 {[%emt 0:00:42]} 20. Rxe8+ {[%emt 0:00:14]} Qxe8 {[%emt 0:00:02]} 21. Qd2 {[%emt 0:03:26]} Be6 {[%emt 0:06:02]} 22. Rd1 {[%emt 0:02:01]} Qd7 {[%emt 0:06:46]} 23. h3 {[%emt 0:01:31]} b5 {[%emt 0:03:03]} 24. Qf4 {[%emt 0:03:47]} Rc5 {[%emt 0:12:29]} 25. Ne3 {[%emt 0:05:16]} Be5 {[%emt 0:01:05]} 26. Qe4 {[%emt 0:00:32]} Kg7 {[%emt 0:05:14]} (26... Qe7 $14) 27. f4 {[%emt 0:02:12] White is much more active.} Bf6 {[%emt 0:01:02]} 28. g4 {[%emt 0:00:07] Bxe6 would be deadly.} h6 {[%emt 0:04:59]} 29. Bd5 {[%emt 0:00:50]} Bxd5 {[%emt 0:01:23]} 30. Nxd5 {[%emt 0:00:31][%cal Be3d5,Bd5f4,Bf4h5][%mdl 32]} Rc4 {[%emt 0:00:18]} 31. Qf3 {[%emt 0:03:19]} Qe6 {[%emt 0:01:39]} 32. f5 {[%emt 0:03:06]} gxf5 {[%emt 0:00:44]} 33. Nf4 {[%emt 0:05:34]} Qe5 {[%emt 0:01:18]} 34. Nh5+ {[%emt 0:00:08]} Kg6 $2 {[%emt 0:00:41][%mdl 8192] [#] Black cannot hold the game after this.} (34... Kg8 $11) 35. Rxd6 $3 $18 {[%emt 0:04:09][%mdl 576] Deflection} Kg5 {[%emt 0:00:09]} (35... fxg4 36. hxg4) 36. Rd5 {[%emt 0:01:58][%mdl 64] Skewer} ({Not} 36. Rxf6 Qe1+ 37. Kg2 Qd2+ 38. Kh1 (38. Kg3 Qe1+ 39. Kg2 Qd2+ 40. Kg3 Qe1+ 41. Qf2 Qxf2+ 42. Kxf2 fxg4 $16) 38... Qc1+ 39. Kg2 Qd2+ 40. Qf2 (40. Kg3 Qe1+ 41. Qf2 Qxf2+ 42. Kxf2 fxg4 $16) 40... Qxf2+ 41. Kxf2 fxg4 $16) 36... Qe1+ {[%emt 0:00:45]} 37. Kg2 {[%emt 0:00:31]} Be7 {[%emt 0:00:49]} 38. Rxf5+ {[%emt 0:02:11]} (38. Qxf5+ $142 Kh4 39. Qf3 (39. Rxb5 Bg5 $16) 39... Rc5 40. g5 (40. Qxf7 $2 {loses.} Qe4+ 41. Qf3 Qxf3+ 42. Kxf3 Rxd5 $19) 40... Qe6 41. Nf4 Qxd5 42. Nxd5 {[%mdl 64] Discovered Attack} Rc4 43. Nxe7) 38... Kh4 {[%emt 0:00:20]} 39. Qg3+ $2 {[%emt 0:03:33] Artfully played by Giri.   Weighted Error Value: White=0.24 (precise) /Black=0.43} (39. Ng3 {mates} Bg5 40. Rd5 Rf4 41. Nf5+ Rxf5 42. gxf5 Qg1+ {[%mdl 64] Decoy} 43. Kxg1 Be3+ 44. Qxe3 Kh5 45. Qf4 f6 46. Qg4#) 1-0

[Event "85th Tata Steel Masters 2023"]
[Site "Wijk aan Zee"]
[Date "2023.01.29"]
[Round "13.3"]
[White "Erigaisi Arjun"]
[Black "Carlsen, Magnus"]
[Result "0-1"]
[ECO "A50"]
[WhiteElo "2722"]
[BlackElo "2859"]
[Annotator "TA"]
[PlyCount "112"]
[EventDate "2023.01.10"]
[EventType "tourn"]
[EventCountry "NED"]
[SourceTitle "playchess.com"]
[Source "ChessBase"]
[SourceQuality "1"]
[TimeControl "40/6000+30:30/3000+30:900+30"]

{[%evp 12,112,18,10,33,27,31,25,47,19,32,9,13,12,15,10,10,8,22,4,9,0,0,-6,5,5,5,0,-8,-11,0,-14,0,0,0,0,0,-2,0,-9,-10,-116,0,0,0,-2,0,0,0,0,36,37,52,0,0,0,0,0,0,0,0,0,0,0,0,0,0,0,0,0,0,-16,0,-79,-85,-84,-81,-166,-165,-151,-116,-154,-144,-144,-139,-178,-172,-186,-195,-369,-397,-414,-431,-432,-452,-449,-437,-1102,-1104,-29981,-29979,-29991,-29992]} 1. Nf3 {[%emt 0:00:41]} Nf6 {[%emt 0:02:19]} 2. g3 {[%emt 0:00:08]} b6 {[%emt 0:02:05]} 3. Bg2 {[%emt 0:00:07]} Bb7 {[%emt 0:00:04]} 4. O-O {[%emt 0:00:09]} g6 {[%emt 0:00:05]} 5. c4 {[%emt 0:00:56]} Bg7 {[%emt 0:00:16]} 6. d4 {[%emt 0:03:00]} O-O {[%emt 0:02:14]} 7. d5 {[%emt 0:00:14]} Na6 {[%emt 0:00:34] A50: Queen's Fianchetto Defence (1 d4 Nf6 2 c4 b6).} 8. Nc3 {[%emt 0:01:07]} Nc5 {[%emt 0:00:16]} 9. Nd4 {[%emt 0:04:23][%cal Bf3d4,Bd4c2,Bc2a3,Ba3b5][%mdl 32]} e5 {[%emt 0:08:25] White has an edge.} 10. Nc2 {[%emt 0:08:13]} a5 {[%emt 0:01:01]} 11. b3 {[%emt 0:02:35]} d6 {[%emt 0:02:33]} 12. e4 {[%emt 0:06:30]} Bc8 {[%emt 0:00:25] [#]} 13. Na3 $146 {[%emt 0:01:46]} ({Predecessor:} 13. Rb1 Bd7 14. a3 a4 15. b4 Nb3 16. Bb2 h5 17. h4 Ng4 18. f3 Nh6 19. Qd3 {0-1 Vidit,S (2707)-Rapport,R (2736) Hengshui IMSA blitz 2019 (1)}) 13... Ne8 {[%emt 0:16:17]} 14. Nab5 {[%emt 0:02:13]} Bd7 {[%emt 0:01:00]} 15. Rb1 {[%emt 0:05:40]} f5 {[%emt 0:00:29]} 16. f3 {[%emt 0:00:08]} f4 {[%emt 0:05:26]} 17. a3 {[%emt 0:04:20]} g5 {[%emt 0:01:12]} 18. b4 {[%emt 0:03:10]} Nb7 {[%emt 0:01:21]} 19. g4 {[%emt 0:07:19]} h5 {[%emt 0:00:53]} 20. h3 {[%emt 0:00:06]} Rf7 {[%emt 0:00:52]} 21. Kf2 {[%emt 0:06:40][%cal Bg1f2,Bf2e1,Be1d1,Bd1c2][%mdl 32]} (21. gxh5 Nf6 $15) 21... Bf8 {[%emt 0:01:23]} 22. Rg1 {[%emt 0:01:43]} Rh7 {[%emt 0:00:19]} 23. Bf1 {[%emt 0:00:17]} Nf6 {[%emt 0:00:23]} 24. Ke1 {[%emt 0:01:01]} Qc8 {[%emt 0:01:13]} 25. Rb2 {[%emt 0:06:05]} Nd8 {[%emt 0:00:24]} 26. Qd3 {[%emt 0:02:39]} (26. Rgg2 $11) 26... Nf7 {[%emt 0:00:40]} (26... axb4 $17 27. axb4 hxg4 28. hxg4 c6 29. dxc6 Nxc6) 27. Kd1 $11 {[%emt 0:03:09]} Be7 {[%emt 0:06:39]} 28. Kc2 {[%emt 0:01:53]} axb4 {[%emt 0:04:31]} (28... Nh8 {simplifies} 29. Kb1 Ng6 30. Qd1 Kg7) 29. axb4 {[%emt 0:00:05]} hxg4 {[%emt 0:00:06]} 30. hxg4 {[%emt 0:00:32]} Ra1 {[%emt 0:00:16]} (30... c5 $5 {[%cal Rc5b4]} 31. dxc6 Bxc6 $11) 31. Rb1 {[%emt 0:04:30]} Rh2+ {[%emt 0:01:38]} 32. Rg2 {[%emt 0:08:43]} ({Better is} 32. Be2 $14 Rxb1 33. Kxb1) 32... Rxg2+ $1 {[%emt 0:00:07]} 33. Bxg2 {[%emt 0:00:04][%cal Bf1g2,Bg2f3,Bf3h5,Bh5g6,Bg6f5][%mdl 32]} Rxb1 {[%emt 0:00:13]} 34. Kxb1 {[%emt 0:00:17]} Nxg4 {[%emt 0:00:11]} 35. fxg4 {[%emt 0:00:07]} Bxg4 {[%emt 0:00:08]} 36. Bf3 {[%emt 0:16:35]} Bh3 {[%emt 0:16:27][%cal Bg4h3,Bh3f1,Bf1g2,Bg2f3][%mdl 32]} 37. Bh5 {[%emt 0:01:26]} g4 {[%emt 0:02:02]} 38. Ne2 $1 {[%emt 0:00:30]} Bf1 {[%emt 0:05:19]} 39. Qd1 {[%emt 0:04:53]} Bg2 {[%emt 0:01:25]} 40. Bg6 {[%emt 0:01:09]} Ng5 $1 {[%emt 0:08:44]} 41. Nbc3 {[%emt 0:21:08]} Bf3 {[%emt 0:01:03]} 42. Qf1 {[%emt 0:02:09]} (42. Qd3 $11 {keeps the balance.}) 42... Kg7 $17 {[%emt 0:02:54]} 43. Bf5 {[%emt 0:00:11] [#]} Qh8 {[%emt 0:00:21] ...g3 would be deadly.} 44. Nxf4 {[%emt 0:01:33]} exf4 $19 {[%emt 0:00:30]} 45. Bxf4 {[%emt 0:00:06]} Bf6 {[%emt 0:06:22]} 46. Qc1 {[%emt 0:01:06]} Nf7 {[%emt 0:06:10]} 47. Nb5 {[%emt 0:02:18]} Qa8 {[%emt 0:09:29] ( -> ...Qa1+)} 48. e5 {[%emt 0:00:28]} (48. Nxc7 Qa1+ 49. Kc2 Qc3+ 50. Kb1 Qb3+) 48... dxe5 {[%emt 0:03:21]} 49. Bd2 {[%emt 0:00:17]} Nd6 {[%emt 0:06:42]} 50. Bh6+ $2 {[%emt 0:09:29] [#]} (50. Nxc7 Qa4 51. Bc2 (51. Ne6+ $2 Kf7 $19)) 50... Kf7 $1 {[%emt 0:01:59]} 51. Nxd6+ {[%emt 0:00:08]} (51. Nxc7 $2 {too greedy.} Qa4 52. Bc2 Qxb4+ 53. Qb2 Qxc4 $19) (51. Be6+ Kg6 52. Nxd6 (52. Nxc7 $2 Qa4 $19) 52... cxd6 $19) 51... cxd6 {[%emt 0:00:12]} 52. Bg5 {[%emt 0:00:05] Be6+ is the strong threat.} Qh8 {[%emt 0:06:18]} ({Wrong is} 52... Qa4 $2 53. Be6+ Ke8 54. Bxf6 $17) 53. Be3 {[%emt 0:00:21]} e4 {[%emt 0:10:51] And now ...Qa8 would win.} 54. Bxb6 {[%emt 0:00:45]} ({Weaker is} 54. Be6+ Kg6 55. Ka2 Qh2+ 56. Ka3 b5 57. cxb5 Qe2 $19) (54. Qa3 $142 Qh1+ 55. Qc1) 54... Qh2 {[%emt 0:02:52]} 55. Bg1 {[%emt 0:03:30]} Qe2 {[%emt 0:01:32]} 56. b5 {[%emt 0:01:31]} Qd3+ {[%emt 0:00:40] Weighted Error Value: White=0.42/Black=0.06 (flawless)} 0-1

[Event "85th Tata Steel Masters 2023"]
[Site "Wijk aan Zee"]
[Date "2023.01.29"]
[Round "13.4"]
[White "Praggnanandhaa R"]
[Black "So, Wesley"]
[Result "1/2-1/2"]
[ECO "D41"]
[WhiteElo "2684"]
[BlackElo "2760"]
[Annotator "TA"]
[PlyCount "103"]
[EventDate "2023.01.10"]
[EventType "tourn"]
[EventCountry "NED"]
[SourceTitle "playchess.com"]
[Source "ChessBase"]
[SourceQuality "1"]
[TimeControl "40/6000+30:30/3000+30:900+30"]

{[%evp 13,103,19,16,18,24,19,19,29,20,14,12,12,16,15,6,6,6,6,13,10,16,19,16,0,0,5,0,1,5,7,0,0,10,0,0,0,0,0,0,0,8,8,8,9,8,7,13,8,28,8,45,8,66,50,50,50,50,50,63,41,41,28,28,28,28,28,28,28,28,28,28,32,50,35,35,0,0,0,0,0,0,0,0,0,0,0,0,0,0,0,0,0]} 1. d4 {[%emt 0:00:46]} Nf6 {[%emt 0:00:11]} 2. c4 {[%emt 0:00:07]} e6 {[%emt 0:00:04]} 3. Nf3 {[%emt 0:00:08]} d5 {[%emt 0:00:05]} 4. Nc3 {[%emt 0:00:05]} c5 {[%emt 0:06:14]} 5. cxd5 {[%emt 0:00:19]} cxd4 {[%emt 0:00:07]} 6. Qa4+ {[%emt 0:00:34]} Bd7 {[%emt 0:00:10]} 7. Qxd4 {[%emt 0:00:06]} exd5 {[%emt 0:00:04]} 8. Nxd5 {[%emt 0:00:16] [#] Qe5+ is the strong threat. D41: Queen's Gambit Declined: Semi-Tarrasch with 5 cxd5.} Qa5+ {[%emt 0:00:07]} 9. Nc3 {[%emt 0:00:23]} Nc6 {[%emt 0:00:04] Prevents Qe5+} 10. Qd1 {[%emt 0:00:44]} Ne4 {[%emt 0:02:01]} 11. Bd2 {[%emt 0:00:32]} Nxd2 {[%emt 0:01:27]} 12. Nxd2 {[%emt 0:00:22][%cal Bf3d2,Bd2c4,Bc4d6,Bd6b7,Bb7c5][%mdl 32]} Bb4 {[%emt 0:03:11] [#]} 13. Rc1 $146 {[%emt 0:00:30]} ({Predecessor:} 13. Qc1 Rc8 14. a3 Bxc3 15. Qxc3 Qxc3 16. bxc3 Na5 17. Rc1 Be6 18. e3 Ke7 19. Bd3 {½-½ Pecorelli Garcia,H (2430)-Delgado Ramirez,N (2417) CUB-ch Santa Clara 1999}) 13... Bxc3 {[%emt 0:00:11]} 14. Rxc3 {[%emt 0:00:14]} Qxa2 {[%emt 0:00:06]} 15. Nc4 {[%emt 0:00:42]} Be6 {[%emt 0:00:07]} 16. e4 {[%emt 0:01:17] Black must now prevent Ra3.} Rd8 {[%emt 0:02:28]} 17. Nd6+ $1 {[%emt 0:02:12]} Kf8 $1 {[%emt 0:05:06] [#]} 18. Qc1 {[%emt 0:00:56]} Qa4 $1 {[%emt 0:00:27]} ({Don't do} 18... Rxd6 19. Ra3 $16) 19. Nxb7 {[%emt 0:01:08]} Qxe4+ {[%emt 0:00:06]} 20. Qe3 {[%emt 0:00:05]} Qxe3+ {[%emt 0:00:05]} 21. fxe3 {[%emt 0:00:06]} Rb8 {[%emt 0:00:05]} 22. Nc5 {[%emt 0:00:21] And now Nxe6+ would win.} Nd8 {[%emt 0:17:23]} (22... Bc8 $5 {[%cal Rb8b2]}) 23. Bd3 {[%emt 0:07:42]} g6 {[%emt 0:07:06]} 24. O-O {[%emt 0:03:39]} Rxb2 {[%emt 0:06:31]} 25. Ra3 {[%emt 0:06:02]} Kg7 {[%emt 0:05:14]} 26. Nxe6+ {[%emt 0:01:53]} Nxe6 {[%emt 0:00:07]} 27. Rxa7 {[%emt 0:00:03]} Rf8 {[%emt 0:00:21]} 28. Bc4 {[%emt 0:00:13]} Rb6 {[%emt 0:04:28]} 29. Bd5 {[%emt 0:03:32]} g5 {[%emt 0:16:17]} 30. Re7 {[%emt 0:04:52]} Rd6 {[%emt 0:03:05]} 31. Rf5 {[%emt 0:04:47]} (31. Bxe6 {simplifies} Rxe6 32. Rfxf7+ Rxf7 33. Rxe6 g4 34. Re4) 31... h6 {[%emt 0:01:36]} (31... Kg6 $5 {[%cal Rg6f5]} 32. Be4 (32. e4 Nd8 $14) 32... Kg7 $14) 32. g4 {[%emt 0:09:21]} (32. Bxe6 {simplifies} Rxe6 33. Rfxf7+ Rxf7 34. Rxe6 h5 35. h3) 32... Nc5 {[%emt 0:08:59]} (32... Nd8 $11) 33. Rexf7+ {[%emt 0:06:42]} Rxf7 {[%emt 0:00:47]} 34. Rxf7+ $14 {[%emt 0:00:20][%mdl 4096] Endgame KRB-KRN} Kg6 {[%emt 0:00:03]} 35. Rf5 {[%emt 0:00:33]} Nd7 {[%emt 0:01:29]} 36. Bf7+ {[%emt 0:09:01]} Kg7 {[%emt 0:00:21]} 37. Bc4 {[%emt 0:00:27]} Nf6 {[%emt 0:01:46]} 38. h3 {[%emt 0:01:48]} Rc6 {[%emt 0:00:58]} 39. Bb5 {[%emt 0:12:22]} Re6 {[%emt 0:10:53]} 40. Rf3 {[%emt 0:00:33]} h5 {[%emt 0:04:56]} 41. gxh5 {[%emt 0:50:30]} Nxh5 {[%emt 0:50:40]} 42. Bd7 {[%emt 0:03:12]} Rf6 {[%emt 0:00:00]} 43. Bf5 {[%emt 0:00:00]} Nf4 {[%emt 0:00:00]} 44. e4 {[%emt 0:00:00]} Ne2+ {[%emt 0:00:00] The position is equal.} 45. Kg2 {[%emt 0:00:00]} Nd4 {[%emt 0:00:00]} 46. Rf2 {[%emt 0:00:00]} Nxf5 {[%emt 0:00:00]} 47. exf5 $11 {[%emt 0:00:00] KR-KR} Ra6 {[%emt 0:00:00]} 48. f6+ {[%emt 0:00:00]} Rxf6 {[%emt 0:00:00]} 49. Rxf6 {[%emt 0:00:00]} Kxf6 {[%emt 0:00:00]} 50. Kg3 {[%emt 0:00:00]} Kf5 {[%emt 0:00:00]} 51. h4 {[%emt 0:00:00]} gxh4+ {[%emt 0:00:00]} 52. Kxh4 {[%emt 0:00:00] Weighted Error Value: White=0.05 (flawless) /Black=0.04 (flawless)} 1/2-1/2